Cogmind - Beta 15 *** ADVENTURER MODE // 2025.05.23 @ 19:39:45 Player: Haruru Result: Self-destructed Performance ------------- Evolutions (2) 1000 Regions Visited (3) 600 Robots Destroyed (37) 185 Value Destroyed (1057) 1057 Prototype IDs (2) 40 Alien Tech Used (0) 0 Bonus (0) 0 TOTAL SCORE: 2882 Bonus ------- None Cogmind --------- Core Integrity 472/550 Matter 1/300 Energy 415/415 System Corruption 0% Temperature Cool (0) Movement Flying (114) Ox1 Location -8/Materials Parts ------- > --- POWER (2) -------- Ion Engine Improved Ion Engine > --- PROPULSION (3) --- Flight Unit Flight Unit Flight Unit > --- UTILITY (3) ------ Small Storage Unit > --- WEAPON (3) ------- (None) > --- INVENTORY (8) ---- Ion Engine Huge Storage Unit Recalibrator Blade Saw Greatsword Greatsword Peak State ------------ > --- POWER ------------ Ion Engine Improved Ion Engine > --- PROPULSION ------- Flight Unit Flight Unit Flight Unit > --- UTILITY ---------- Small Storage Unit Recalibrator > --- WEAPON ----------- Flak Cannon Flak Cannon Flak Cannon > --- INVENTORY -------- Ion Engine Huge Storage Unit Flak Cannon Greatsword Greatsword [Rating: 22] Favorites ----------- Power Ion Engine Engine Ion Engine Power Core Light Nuclear Core Propulsion Light Treads Treads Light Treads Flight Unit Flight Unit Utility Light Armor Plating Device Recalibrator Storage Small Storage Unit Protection Light Armor Plating Weapon Flak Cannon Ballistic Gun Light Assault Rifle Ballistic Cannon Flak Cannon Slashing Weapon Greatsword Build | -11 -10 -9 -8 ------- Run | Yrd Mat Mat Mat Slots Evolved 4 | . . 2 2 Power 1 | . . 1 . Propulsion 1 | . . . 1 Utility 1 | . . 1 . Weapon 1 | . . . 1 Parts Attached 22 | 6 3 8 5 Power 5 | 1 2 2 . Engine 4 | 1 1 2 . Core 1 | . 1 . . Reactor . | . . . . Propulsion 5 | 2 . . 3 Treads 2 | 2 . . . Leg . | . . . . Wheel . | . . . . Hover . | . . . . Flight 3 | . . . 3 Utility 5 | 1 1 2 1 Device 1 | . . . 1 Storage 1 | 1 . . . Processor . | . . . . Hackware . | . . . . Protection 3 | . 1 2 . Artifact . | . . . . Weapon 7 | 2 . 4 1 Energy Gun . | . . . . Energy Cannon . | . . . . Ballistic Gun 2 | 2 . . . Ballistic Cannon 4 | . . 4 . Launcher . | . . . . Special Weapon . | . . . . Impact Weapon . | . . . . Slashing Weapon 1 | . . . 1 Piercing Weapon . | . . . . Special Melee Weapon . | . . . . Unidentified Prototypes . | . . . . Parts Lost 3 | . . . 3 Power . | . . . . Propulsion 1 | . . . 1 Utility 2 | . . . 2 Weapon . | . . . . Highest Loss Streak 2 | . . . 2 To Critical Strikes 1 | . . . 1 Average Backups 3 | 1 1 3 5 Power . | . 1 . 1 Propulsion . | . . . . Utility 1 | . . 1 1 Weapon 1 | . . 1 2 Tool/Special . | . . . . Unused Backups 4 | . 1 . 3 Power 1 | . 1 . . Propulsion . | . . . . Utility 1 | . . . 1 Weapon 2 | . . . 2 Tool/Special . | . . . . Average Slot Usage (%) 88 | . 90 96 78 Engine 16 | . 6 22 18 Core 2 | . 7 . . Treads 20 | . 28 21 13 Flight 1 | . . . 5 Storage 11 | . 14 11 9 Protection 12 | . 5 19 11 Ballistic Gun 8 | . 28 2 . Ballistic Cannon 14 | . . 19 20 Peak Build Rating 22 | 6 9 14 22 Average Rating 12 | 4 7 12 16 On Entrance 6 | . 6 7 14 Naked Turns . | . . . . Heaviest Build 41 | 10 15 35 41 Greatest Support 40 | 40 40 40 40 Greatest Overweight (x) 6 | . . . 6 Average Overweight (x) . | . . . . Largest Inventory Capacity 8 | 8 8 8 8 Average Capacity 7 | 7 8 8 8 Most Carried 8 | 5 4 6 8 Average Carried 4 | 1 1 3 7 Final Capacity 8 | 8 8 8 8 Final Carried 8 | 1 3 4 8 Class Distribution -------------------- 68% | Mutant 23% | Tank 8% | Scavenger-Mutant Dominant Class ---------------- Mutant | -10/Materials Mutant | -9/Materials Tank | -8/Materials Resources | -11 -10 -9 -8 ----------- Run | Yrd Mat Mat Mat Matter Collected 808 | 226 72 379 131 Remotely . | . . . . Salvage Created 968 | . 334 474 160 Parts 57 | . 15 34 8 Haulers Intercepted . | . . . . Recyclers Shooed 1 | . . 1 . Parts Field Recycled . | . . . . Retrieved Matter . | . . . . Parts Self-Destructed . | . . . . Prevented . | . . . . Kills | -11 -10 -9 -8 ------- Run | Yrd Mat Mat Mat Combat Hostiles Destroyed 29 | . 5 14 10 Melee 3 | . . . 3 Guns 5 | . 5 . . Cannons 21 | . . 14 7 Classes Destroyed 9 | . 2 7 . Builder 1 | . . 1 . Recycler 3 | . 1 2 . Mechanic 1 | . . 1 . Operator 1 | . . 1 . Watcher 2 | . . 1 1 Swarmer 8 | . . 4 4 Grunt 17 | . 5 7 5 Duelist 1 | . . 1 . Sentry 3 | . . 2 1 Best Kill Streak 5 | . 3 5 4 Combat Bots Only 4 | . 3 4 4 Max Kills in Single Turn 2 | . 1 2 1 Gunslinging . | . . . . Exploded . | . . . . Melee 1 | . . . 1 Uniques/NPCs Destroyed . | . . . . Combat | -11 -10 -9 -8 -------- Run | Yrd Mat Mat Mat Hostile Shots Fired 155 | . 38 34 83 Missed 42 | . 9 10 23 Hits 113 | . 29 24 60 Projectile 113 | . 29 24 60 Critical Strikes 4 | . 1 1 2 Damage Taken 1100 | . 318 295 487 Core 113 | . 27 8 78 Absorbed by Shields . | . . . . Ignored by Resistances 335 | . 94 89 152 Regen/Repaired (Parts) 168 | . . 168 . Core Remaining (%) 95 | 100 89 98 . Volleys Fired 72 | . 29 30 13 Largest 3 | . 2 2 3 Hottest 111 | . 40 74 111 Shots Fired 157 | . 58 60 39 Gun 58 | . 58 . . Cannon 99 | . . 60 39 Launcher . | . . . . Special . | . . . . Kinetic 157 | . 58 60 39 Thermal . | . . . . Explosive . | . . . . Electromagnetic . | . . . . Robot Hit Streak 18 | . 18 11 9 Robot Miss Streak 5 | . 1 4 5 Penetration Max . | . . . . Secondary Targets . | . . . . Shots Hit Robots 136 | . 50 48 38 Core Hits 117 | . 17 58 42 Critical Kills . | . . . . Critical Parts Destroyed . | . . . . Critical Strikes . | . . . . Melee Attacks 4 | . . . 4 Impact . | . . . . Slashing 4 | . . . 4 Piercing . | . . . . Sneak Attacks . | . . . . Combat Hostiles . | . . . . Follow-up Attacks . | . . . . Damage Inflicted 2304 | . 396 946 962 Guns 396 | . 396 . . Cannons 1748 | . . 946 802 Explosions . | . . . . Melee 160 | . . . 160 Ramming . | . . . . Kinetic 2144 | . 396 946 802 Thermal . | . . . . Explosive . | . . . . Electromagnetic . | . . . . Impact . | . . . . Slashing 160 | . . . 160 Piercing . | . . . . Highest Corruption 2 | . . 2 . Average Corruption 1 | . . 1 . Corruption Purged . | . . . . Corruption Blocked . | . . . . Overload Shots . | . . . . Overflow Damage . | . . . . Projectiles . | . . . . Explosions . | . . . . Melee . | . . . . Knockbacks 51 | . . 18 33 Impact . | . . . . Kinetic 46 | . . 16 30 Secondary 5 | . . 2 3 Self-Inflicted Damage 116 | . . 116 . Shots 2 | . . 2 . Rammed . | . . . . Targets Rammed . | . . . . Kicked . | . . . . Crushed . | . . . . Highest Temperature 356 | . 115 356 234 Average Temperature 92 | . 44 110 93 Received Heat Transfer 504 | . 243 81 180 Effects 3 | . . 3 . Shutdowns 1 | . . 1 . Short Circuit 1 | . . 1 . Damage (minor) 1 | . . 1 . Siege Activations . | . . . . Martial Activations . | . . . . Shielding Activations . | . . . . Robots Disrupted . | . . . . Combat Hostiles . | . . . . Robots Corrupted . | . . . . Combat Hostiles . | . . . . Parts Fried . | . . . . Impact Corruptions . | . . . . Robots Melted . | . . . . Combat Hostiles . | . . . . Parts Melted . | . . . . Heat Transferred . | . . . . Parts Sabotaged . | . . . . Parts Stolen . | . . . . Parts Stripped . | . . . . Power Chain Reactions . | . . . . Alert | -11 -10 -9 -8 ------- Run | Yrd Mat Mat Mat Maximum Alert Level 1 | . . 1 . Low Security (%) 94 | 100 100 84 100 Level 1 5 | . . 15 . Level 2 . | . . . . Level 3 . | . . . . Level 4 . | . . . . Level 5 . | . . . . High Security . | . . . . Max Security . | . . . . Peak Influence 244 | . 65 244 138 Initial 80 | . . 14 80 Average 65 | . 18 100 75 Influence Increases 797 | . 140 404 253 Destroy 0b10 Robot/C 580 | . 100 280 200 Destroy 0b10 Robot/NC 40 | . 5 30 5 Destroy Leader 104 | . 20 52 32 Successful Hack 9 | . . 8 1 Disable Machine 27 | . . 27 . Destroy Structure 7 | . . 7 . Lose Combat Pursuer 30 | . 15 . 15 Influence Decreases 714 | . 100 220 394 Entered New Map 170 | . . 26 144 Time Decay 514 | . 100 194 220 Lost Part 30 | . . . 30 Squads Dispatched 2 | . . 1 1 Investigation 1 | . . 1 . Extermination . | . . . . Reinforcement 1 | . . . 1 Assault . | . . . . Garrison . | . . . . Intercept . | . . . . Searches Triggered . | . . . . Construction Impeded . | . . . . Haulers Reinforced . | . . . . Active Scanning Responses . | . . . . Cargo Convoy Interrupts . | . . . . Stealth | -11 -10 -9 -8 --------- Run | Yrd Mat Mat Mat Distress Signals 4 | . . 2 2 Communications Jammed . | . . . . Distress Signals . | . . . . Times Spotted 42 | . 8 18 16 Peak Tracking Total 4 | . 3 4 4 Tactical Retreats 2 | . 1 . 1 Traps | -11 -10 -9 -8 ------- Run | Yrd Mat Mat Mat Traps Triggered 3 | . . 3 . Indirectly . | . . . . Trap Hack Attempts . | . . . . Triggered . | . . . . Disarmed . | . . . . Reprogrammed . | . . . . Reused . | . . . . Traps Extracted . | . . . . Installed . | . . . . Triggered . | . . . . Machines | -11 -10 -9 -8 ---------- Run | Yrd Mat Mat Mat Machines Disabled 3 | . . 3 . Max in Single Turn 3 | . . 3 . Machines Repaired . | . . . . Machines Dismantled . | . . . . Machines Sabotaged . | . . . . Overloaded Fab Kills . | . . . . Hacking | -11 -10 -9 -8 --------- Run | Yrd Mat Mat Mat Machines Accessed 5 | . 2 2 1 Terminals 3 | . 2 1 . Fabricators . | . . . . Repair Stations 1 | . . 1 . Recycling Units . | . . . . Scanalyzers 1 | . . . 1 Garrison Access . | . . . . Total Hacks 14 | . 4 6 4 Successful 14 | . 4 6 4 Failed . | . . . . Catastrophic . | . . . . Database Lockouts . | . . . . Manual . | . . . . Terminals 5 | . 4 1 . Fabricators . | . . . . Repair Stations 5 | . . 5 . Recycling Units . | . . . . Scanalyzers 4 | . . . 4 Garrison Access . | . . . . Terminal Hacks 5 | . 4 1 . Record 3 | . 3 . . Prototype ID Bank 1 | . . 1 . Alert Level 1 | . 1 . . Fabricator Hacks . | . . . . Repair Station Hacks 5 | . . 5 . Scan Component 3 | . . 3 . Repair 2 | . . 2 . Recycling Unit Hacks . | . . . . Scanalyzer 4 | . . . 4 Insert Component 2 | . . . 2 Analyze 2 | . . . 2 Garrison Access Hacks . | . . . . Unauthorized Hacks . | . . . . Terminals . | . . . . Fabricators . | . . . . Repair Stations . | . . . . Recycling Units . | . . . . Scanalyzers . | . . . . Garrison Access . | . . . . Data Cores Recovered . | . . . . Used . | . . . . Hacking Detections 3 | . 2 1 . Full Trace Events 1 | . . 1 . Feedback Events 1 | . . 1 . Corruption 1 | . . 1 . Feedback Blocked . | . . . . Robot Schematics Acquired . | . . . . Robots Built . | . . . . Authchips . | . . . . Time . | . . . . Total Robot Build Rating . | . . . . Part Schematics Acquired 2 | . . . 2 Parts Built . | . . . . Authchips . | . . . . Time . | . . . . Total Part Build Rating . | . . . . Parts Repaired 2 | . . 2 . Time 79 | . . 79 . Parts Recycled . | . . . . Recycled Matter . | . . . . Retrieved Matter . | . . . . Retrieved Components . | . . . . Parts Scanalyzed 2 | . . . 2 Part Schematics Acquired 2 | . . . 2 Parts Damaged . | . . . . Bothacking | -11 -10 -9 -8 ------------ Run | Yrd Mat Mat Mat Used RIF Installer . | . . . . Robots Hacked . | . . . . Non-combat . | . . . . Combat . | . . . . Robot Hacks Applied . | . . . . Relay Couplers Released . | . . . . Fabnet Peak Effective % . | . . . . Robots Rewired . | . . . . Allies Hacked . | . . . . Hacks Repelled . | . . . . Allies | -11 -10 -9 -8 -------- Run | Yrd Mat Mat Mat Total Allies . | . . . . Largest Group . | . . . . Highest-Rated Group . | . . . . Highest-Rated Ally . | . . . . Total Orders . | . . . . Ally Attacks . | . . . . Total Damage . | . . . . Kills . | . . . . Allies Corrupted . | . . . . Allies Melted . | . . . . Intel | -11 -10 -9 -8 ------- Run | Yrd Mat Mat Mat Active Infowar (turns) . | . . . . Robot Analysis Total . | . . . . Derelict Logs Recovered . | . . . . Drone Launches . | . . . . Drone Recoveries . | . . . . Exploration | -11 -10 -9 -8 ------------- Run | Yrd Mat Mat Mat Turns Passed 1255 | 52 345 412 446 Spaces Moved 543 | 33 160 165 185 Core 11 | 11 . . . Treads 466 | 22 160 165 119 Legs . | . . . . Wheels . | . . . . Hover . | . . . . Flight 66 | . . . 66 Fastest Speed 50 | 50 160 160 114 Average Speed 168 | 123 160 160 191 Slowest Speed 520 | 160 160 160 520 Overloaded Moves . | . . . . Propulsion Burnouts . | . . . . Robots Hopped . | . . . . Potential Cave-ins . | . . . . Cave-ins Triggered . | . . . . Exploration Rate (%) 20 | 4 31 24 21 Regions Visited 3 Branch Regions . Pre-discovered Areas . | . . . . Known Exits Taken . | . . . . Unknown Exits Taken 3 | 1 1 1 . Scrap Searched . | . . . . Spaces Dug . | . . . . Terrain Destroyed 7 | . . 7 . Melee . | . . . . Projectile . | . . . . AOE 7 | . . 7 . Terrain Rammed . | . . . . Walls Destroyed . | . . . . Machines Disabled . | . . . . Actions | -11 -10 -9 -8 --------- Run | Yrd Mat Mat Mat Total 743 | 44 204 254 241 Wait 58 | . 4 40 14 Move 540 | 32 159 164 185 Hop . | . . . . Pick Up 27 | 6 6 8 7 Fast Attach 4 | 1 . . 3 Attach 19 | 5 2 7 5 Detach 1 | . . . 1 Swap 4 | . 1 2 1 Drop 14 | . 3 3 8 Fire 72 | . 29 30 13 Melee 4 | . . . 4 Ram . | . . . . Kick . | . . . . Crush . | . . . . Escape Stasis . | . . . . Rewire . | . . . . Trap . | . . . . Miscellaneous . | . . . . Route ------- -11/Scrapyard -10/Materials -9/Materials -8/Materials History --------- Turn | Location | Event 21 | -11/Scrapyard | Discovered new exit (range 15) 53 | -11/Scrapyard | Entered Materials 306 | -10/Materials | Build established: Mutant 390 | -10/Materials | Discovered new exit (range 4) 398 | -10/Materials | Entered another Materials area 398 | -9/Materials | Evolved 2 slots: Power x1, Utility x1 719 | -9/Materials | Repaired Broken Flak Cannon 748 | -9/Materials | Repaired Lgt. Treads 801 | -9/Materials | Discovered new exit (range 4) 810 | -9/Materials | Entered another Materials area 810 | -8/Materials | Evolved 2 slots: Propulsion x1, Weapon x1 1256 | -8/Materials | Self-destructed Last Messages --------------- 01144_ R-06 Scavenger collects Lgt. Assault Rifle. 01147_ K-01 Serf cleans the Atomic Centrifuge. 01147_ Acquired Flak Cannon. 01150_ K-01 Serf cleans the Atomic Centrifuge. 01150_ Acquired Flak Cannon. 01161_ Dropped Lgt. Treads. 01162_ Acquired Flight Unit. 01166_ K-01 Serf cleans the Atomic Centrifuge. 01168_ Acquired Flight Unit. 01171_ K-01 Serf cleans the Atomic Centrifuge. 01173_ Acquired Flight Unit. 01174_ Dropped Greatsword. 01177_ Acquired Greatsword. 01179_ W-25 Informer distress signal alerts nearby ally. 01180_ Dropped Flak Cannon. 01209_ Connecting with Terminal... 01225_ Dropped Flak Cannon. 01225_ Acquired Blade Saw. Map ----- +----------------------------------------------------+ | ?????????# #??? ?# # #### ] ##### | | ????????## ##?# ?# # =#???? | | ????????# ?## ## # #???? | | ????????# ?? # # T #???? | | ????????? ??? + # #???? | | ????????? ???# # ?# #???? | | ????######/###?# #? ???# ####? | | ????# #?# ####+###### / | | ????# #?# """ ####" | | ????# #?# """ ! #???? | | ????# #?# ###+####### """ #???? | | ????# #?# # ## #???? | | ????# ### # """ !## ##### | | ????# ] / # "T" ! ## | | ????# ### + ## | | ????# #?## # !##+#### | | ????##########??# # """" #?????## ##### | | ????????????????# # """" !#??????# #???? | | ????????????????#s# """" #??????# #????? | | ????????????????# # #??????# #????? | | ????????????????# ##########??????# #????? | | ????????????????# #?????#######???# #????? | | ????????????????# #?????# "" #???# #????? | | ????????????????# #?????# ""S #???# #????? | | ?????????????####/#####?# "" #####+####?? | | ?????????????# ! @ #?# # #?? | | ?????????????# """ #?# """ + """ #?? | | ?????????????# = """ #?# """ # """ #?? | | ?????????????# """ #?# """ # """ #?? | | ?????????????# #?# # #?? | | ?????????????# = """ !#?# """ # "" #?? | | ?????????????# """ #?# """ # S"" #?? | | ?????????????# """ #?# """ # "" #?? | | ?????????????# #?# # = #?? | | ????###########+#############+######+###?? | | ????# | | ????# | | ????# | | ????######## ####+################# | | ???????????# #?# ????????????????? | | ???????????#[[! #?# ??????????????? | | ???????????#[[!!//#?# """ #?????????????? | | ???????????########?# """ #?????????????? | | ????????????????????# """ #?????????????? | | ????????????????????# #?????????????? | | ????????????????????########?????????????? | | ?????????????????????????????????????????? | | ?????????????????????????????????????????? | | ?????????????????????????????????????????? | | ?????????????????????????????????????????? | +----------------------------------------------------+ Best States ------------- Heat Dissipation 31 Energy Generation 17 Energy Capacity 415 Matter Stores 300 Matter Capacity 300 Sight Range 16 Terrain Scan Density 10 Armor Coverage 300 Resistance: KI 20 Resistance: TH 20 Resistance: EX 20 Resistance: EM 20 Resistance: I 20 Resistance: S 20 Resistance: P 20 Evasion (%) 50 Recoil Reduction 2 Offensive Hacking 10 Item Schematics ----------------- Flak Cannon | -8/Materials | Scanalyzed Greatsword | -8/Materials | Scanalyzed Robot Schematics ------------------ None Fabricated ------------ Nothing Repaired ---------- Flak Cannon | 78% | -9/Materials | Broken Lgt. Treads | 3% | -9/Materials Alien Tech Used ----------------- None Achievements -------------- None Challenges ------------ None Game ------ Seed TrapDisassembledShell Manual? 0 Play Time 00:15:56 Cumulative 18.6 hours Start 2025.05.23 @ 19:21:14 End 2025.05.23 @ 19:39:45 Sessions 3 Manual Loads 0 Difficulty Adventurer Special Mode None Game No. 11 Rogue 0 Adventurer 11 Explorer 0 Win Type - Total 0 Types 0/0/0/0/0/0/0/0/0/0 Lore% 2 Gallery% 18 Achievement% 23 Wizard Run 0 Options --------- Layout 1 ASCII 0 Keyboard 0 Movement Mouse Keybinds 0 Fullscreen 0 Font 20/SmallcapsGlow Map View 50x35 Zoom Use 0% Tactical HUD 1 Map Filters NONE Filters NONE Steam 1 RUN: eafaa688-df9c-4836-ab86-3c34b7eebab3